fUST/lending_fUST_20240125
["ID","MTS","AMOUNT","RATE_DAILY","PERIOD"]
[312629787,1706119838522,-1993.49479484,0.00029799,2]
[312629788,1706119838532,-35574.6653356,0.000298,2]
[312629789,1706119838541,-437.87707699,0.0003,4]
[312629790,1706119838551,-2371.98806335,0.0003,2]
[312629791,1706119838561,-4146.09720047,0.0003,30]
[312629792,1706119838572,-5646.51481433,0.0003,2]
[312629793,1706119838581,-68433.92364875,0.0003,4]
[312629795,1706119838712,-70800.93504941,0.0003,4]
[312629796,1706119838722,-197.8838443,0.0003013,2]
[312629797,1706119838731,-176.62284,0.00030137,2]
[312629798,1706119838740,-168.3666658,0.00030137,2]
[312629799,1706119838749,-158.280104,0.00030137,2]
[312629800,1706119838759,-4736.37372677,0.000305,2]
[312629801,1706119838770,-154.86062544,0.00031,4]
[312629802,1706119838779,-520.78543319,0.00031507,4]
[312629803,1706119838789,-343.09681091,0.00031507,4]
[312629804,1706119838798,-215.93124285,0.00031507,4]
[312629805,1706119838807,-155.23205591,0.00031507,2]
[312629806,1706119838816,-154.98450155,0.00031507,4]
[312629807,1706119838826,-396771.01248578,0.00032,15]
[312629808,1706119838835,-176.62284,0.0003379,2]
[312629809,1706119838846,-1551.37467146,0.00034,3]
[312629810,1706119838855,-151.0,0.00034909,2]
[312629811,1706119838864,-193.7686859,0.00035,7]
[312629812,1706119838873,-154.86062544,0.00036,4]
[312629813,1706119838883,-30396.95170688,0.00037,2]
[312629814,1706119838892,-12404.99510301,0.00037049,2]
[312629826,1706119841365,-2657.65001381,0.00037039,3]
[312629856,1706119843390,-166.666666,0.00035908,2]
[312629857,1706119843399,-1594.49998619,0.00037039,3]
[312629858,1706119843409,-208.78466806,0.00037048,4]
[312629859,1706119843418,-514.04682538,0.00037049,2]
[312629868,1706119846405,-9986.36822774,0.00037049,2]
[312629869,1706119846702,-0.91031131,0.00037049,2]
[312629870,1706119846714,-1057.94524125,0.00037049,2]
[312630032,1706121032419,-193.7686859,0.0002181,2]
[312630034,1706121032429,-595.27318689,0.00021909,2]
[312630035,1706121032439,-21690.99033113,0.00021909,2]
[312630037,1706121032449,-3486.61806957,0.0002191,2]
[312630039,1706121032458,-938.03984623,0.00021911,2]
[312630041,1706121032467,-262.41441764,0.00021911,2]
[312630042,1706121032476,-19871.73595374,0.00021911,2]
[312630044,1706121032485,-2035.08647523,0.00021911,2]
[312630046,1706121032497,-154.86062544,0.00021911,2]
[312630048,1706121032507,-166.666666,0.00021918,2]
[312630050,1706121032516,-1925.8901809,0.00022397,2]
[312630052,1706121032525,-24900.0,0.00022462,2]
[312630054,1706121032534,-6829.83574018,0.0002355,2]
[312630056,1706121032544,-2651.50280865,0.00023564,2]
[312630058,1706121032553,-1617.28885547,0.00023564,2]
[312630060,1706121032562,-163.02214,0.00026403,2]
[312630062,1706121032571,-433.29113925,0.00028071,2]
[312630063,1706121032580,-3615.44285081,0.00028999,2]
[312630066,1706121032590,-3615.44285081,0.00028999,2]
[312630068,1706121032599,-3615.44285081,0.00028999,2]
[312630070,1706121032609,-3615.44285081,0.00028999,2]
[312630072,1706121032618,-3615.44285081,0.00028999,2]
[312630074,1706121032627,-185.45037393,0.00029697,2]
[312630076,1706121032636,-1942.40988753,0.00029889,2]
[312630078,1706121032646,-6253.59,0.0002989,3]
[312630079,1706121032655,-12405.90541432,0.000299,2]
[312630080,1706121032664,-178.91876323,0.00029989,2]
[312630082,1706121032673,-323.68259118,0.00029998,2]
[312630084,1706121032682,-4813.95392208,0.00029998,2]
[312630086,1706121032691,-522.24897159,0.00029999,2]
[312630088,1706121032701,-15847.5449189,0.0003,4]
[312630096,1706121039296,-2376.35776166,0.0003,4]
[312630097,1706121039308,-387.51487456,0.0003,4]
[312630098,1706121039364,-2347.80222901,0.0003,4]
[312630099,1706121039376,-14586.06026574,0.0003,4]
[312630220,1706121041708,-3378.85032927,0.0002999,3]
[312630224,1706121041780,-1832.47967073,0.0002999,3]
[312630225,1706121041791,-103689.57864829,0.0003,4]
[312630226,1706121041801,-158.280104,0.00030137,2]
[312630227,1706121041811,-158.938572,0.00030137,2]
[312630228,1706121041821,-910.29159127,0.0003038,2]
[312630229,1706121041831,-158.938572,0.00031355,2]
[312630230,1706121041840,-158.938572,0.00032572,2]
[312630231,1706121041858,-154.98450155,0.00033344,4]
[312630232,1706121041877,-158.938572,0.0003379,2]
[312630233,1706121041895,-158.938572,0.00035008,2]
[312630234,1706121041905,-290.32272867,0.00035194,4]
[312630235,1706121041915,-3130.04768523,0.00035769,4]
[312630236,1706121041926,-500.0,0.00035769,2]
[312630237,1706121041936,-164.051894,0.00035774,2]
[312630238,1706121041945,-500.0,0.00035906,2]
[312630239,1706121041954,-154.86062544,0.00036,4]
[312630240,1706121041964,-500.0,0.00036043,2]
[312630241,1706121041973,-158.938572,0.00036225,2]
[312630242,1706121041982,-188.29380735,0.00036975,2]
[312630243,1706121041992,-1274.54346696,0.00037038,2]
[312630244,1706121042001,-680.10116762,0.00037047,4]
[312630245,1706121042011,-2196.43554395,0.00037047,2]
[312630246,1706121042020,-180.696184,0.00037047,4]
[312630247,1706121042030,-199.31601956,0.00037048,4]
[312630248,1706121042041,-323.22562428,0.00037048,2]
[312630249,1706121042051,-211.43320745,0.00037048,4]
[312630250,1706121042061,-71607.27955733,0.00037048,4]
[312630251,1706121042071,-154.86062544,0.00037049,4]
[312630252,1706121042081,-375.92766294,0.00037049,4]
[312630253,1706121042091,-1026.77897877,0.00037049,2]
[312630254,1706121042100,-687.02930473,0.00037049,4]
[312630255,1706121042110,-1109.71485946,0.00037049,4]
[312630256,1706121042119,-247.12043361,0.00037049,2]
[312630257,1706121042129,-154.98450155,0.00037049,4]
[312630258,1706121042138,-684.20206565,0.00037049,4]
[312630260,1706121042147,-154.98450155,0.00037049,4]
[312630261,1706121042157,-3218.21657637,0.00037049,4]
[312630263,1706121042166,-12260.48652932,0.0003715,5]
[312630265,1706121042175,-158.938572,0.00037443,2]
[312630266,1706121042184,-20659.87739736,0.00038,10]
[312630268,1706121042195,-151.0,0.00038,2]
[312630270,1706121042204,-746.00771525,0.000385,4]
[312630271,1706121042214,-158.938572,0.0003866,2]
[312630272,1706121042223,-200.0,0.000387,4]
[312630273,1706121042232,-3000.0,0.00039,7]
[312630274,1706121042242,-309.59757263,0.00039797,4]
[312630275,1706121042251,-7960.18375069,0.00039797,2]
[312630276,1706121042262,-15220.19994985,0.00039797,4]
[312630277,1706121042273,-561.64006482,0.00039797,4]
[312630278,1706121042282,-309.75217661,0.00039797,4]
[312630279,1706121042291,-155.32484539,0.00039797,4]
[312630280,1706121042301,-309.56660676,0.00039797,4]
[312630281,1706121042310,-429.09478055,0.00039797,4]
[312630282,1706121042319,-163.1041432,0.00039797,4]
[312630283,1706121042328,-638.52478245,0.00039797,4]
[312630284,1706121042337,-1164.9655271,0.00039797,4]
[312630285,1706121042346,-309.52025057,0.00039797,4]
[312630286,1706121042355,-156.02710907,0.00039798,4]
[312630287,1706121042365,-333.08255178,0.00039798,4]
[312630288,1706121042374,-329.53567279,0.00039798,4]
[312630289,1706121042384,-1565.02245956,0.00039798,4]
[312630290,1706121042393,-550.72992457,0.00039798,4]
[312630291,1706121042402,-209.34116569,0.00039798,4]
[312630292,1706121042411,-496.93115326,0.00039799,5]
[312630293,1706121042420,-12646.93375698,0.000398,10]
[312630294,1706121042435,-3596.77070134,0.000398,10]
[312630327,1706121043572,-262.20739186,0.00039797,4]
[312630329,1706121043581,-3919.91714086,0.000398,10]
[312630335,1706121043632,-276.15467982,0.000398,10]
[312630337,1706121043643,-258.4278313,0.000398,10]
[312630455,1706121046642,-1044.05246435,0.00039797,4]
[312630456,1706121046652,-4852.07530765,0.00039797,2]
[312630457,1706121046662,-154.86062544,0.00039797,4]
[312630458,1706121046671,-2137.03626766,0.00039797,4]
[312630459,1706121046681,-29068.11300202,0.000398,10]
[312630792,1706122232604,-154.86062544,0.00023551,2]
[312630793,1706122232614,-595.27318689,0.00023551,2]
[312630794,1706122232624,-938.03984623,0.00023552,2]
[312630795,1706122232633,-1267.34951203,0.00023553,2]
[312630796,1706122232645,-2443.90740241,0.00023553,2]
[312630797,1706122232666,-35.65469328,0.00023553,2]
[312630799,1706122232676,-154.86062544,0.00023553,2]
[312630801,1706122232685,-680.27751696,0.00023553,2]
[312630802,1706122232694,-4348.25902985,0.00023553,2]
[312630803,1706122232704,-15956.57028301,0.00023564,2]
[312630804,1706122232713,-1593.27935675,0.00023564,2]
[312630805,1706122232722,-2077.84610471,0.00023564,2]
[312630806,1706122232731,-154.86062544,0.00026908,4]
[312630808,1706122232740,-164.051894,0.00027339,2]
[312630810,1706122232751,-172.154974,0.00027389,2]
[312630812,1706122232759,-709.04306969,0.00028071,2]
[312630814,1706122232768,-185.69620254,0.00028071,2]
[312630816,1706122232777,-496.93115326,0.00028401,5]
[312630828,1706122232876,-290.32272867,0.00028403,2]
[312630830,1706122232886,-3083.770136,0.00028682,2]
[312630832,1706122232896,-155.32484539,0.00029896,2]
[312630834,1706122232906,-329.53567279,0.00029896,2]
[312630836,1706122232927,-4724.75315233,0.00029896,2]
[312630838,1706122232936,-155.03436087,0.00029896,2]
[312630841,1706122232946,-2104.07287401,0.00029896,2]
[312630842,1706122232955,-309.52025057,0.00029897,2]
[312630844,1706122232964,-2008.57936157,0.00029898,2]
[312630847,1706122232974,-2074.57916651,0.00029898,2]
[312630849,1706122232983,-323.22562428,0.00029898,2]
[312630850,1706122232992,-7960.18375069,0.00029898,2]
[312630852,1706122233002,-199.31601956,0.00029898,2]
[312630854,1706122233011,-2804.40987694,0.00029898,2]
[312631034,1706122240928,-325.63780829,0.00029898,2]
[312631036,1706122240938,-211.43320745,0.00029898,2]
[312631038,1706122240948,-561.64006482,0.00029898,2]
[312631040,1706122240957,-528.22332646,0.00029898,2]
[312631042,1706122240969,-1368.27259104,0.00029898,2]
[312631044,1706122240981,-453.22118573,0.00029898,2]
[312631047,1706122240993,-1354.80038481,0.00029898,2]
[312631049,1706122241006,-11515.68246181,0.00029898,2]
[312631051,1706122241016,-638.52478245,0.00029898,2]
[312631053,1706122241026,-550.72992457,0.00029898,2]
[312631055,1706122241036,-429.09478055,0.00029898,2]
[312631057,1706122241046,-309.59757263,0.00029898,2]
[312631059,1706122241055,-11812.1209517,0.00029898,2]
[312631061,1706122241067,-592.91367971,0.00029898,2]
[312631063,1706122241079,-2634.19102988,0.00029898,2]
[312631066,1706122241091,-6660.24053846,0.00029898,2]
[312631067,1706122241758,-2883.18690498,0.00029888,3]
[312631068,1706122241771,-712.41774421,0.00029888,3]
[312643494,1706123079968,2710.21337686,0.00021993,5]
[312643495,1706123088585,5000.0,0.000231,4]
[312643496,1706123097315,3166.02505753,0.000231,4]
[312643497,1706123097964,2710.21337686,0.00019793,5]
[312643498,1706123117948,2710.21337686,0.00019793,5]
[312643499,1706123135970,2436.85775233,0.00019781,5]
[312643502,1706123157506,21696.9088825,0.00018463,2]
[312643503,1706123162301,154.86062544,0.00017803,2]
[312643504,1706123178314,154.86062544,0.00017803,2]
[312643506,1706123198298,154.86062544,0.00017803,2]
[312643507,1706123214298,154.86062544,0.00016023,2]
[312643508,1706123218439,951.7879903,0.00017803,2]
[312643509,1706123218464,158.19453984,0.00017803,2]
[312643510,1706123220182,154.86062544,0.00017803,2]
[312643511,1706123222177,3219.03029015,0.00017803,2]
[312643512,1706123225970,233.31006741,0.00017803,2]
[312643513,1706123227891,154.86062544,0.00017803,2]
[312643514,1706123232300,262.65388492,0.00016023,2]
[312643515,1706123233497,684.40000442,0.00017803,2]
[312643516,1706123236177,155.35881465,0.00017803,2]
[312643517,1706123236418,1109.98253014,0.00017803,2]
[312643519,1706123240171,3219.03029015,0.00017803,2]
[312643521,1706123244117,335.40912252,0.00017803,2]
[312643522,1706123245877,154.86062544,0.00017803,2]
[312643523,1706123249493,684.40000442,0.00017803,2]
[312643525,1706123258415,519.24776292,0.00017803,2]
[312643526,1706123260179,3219.03029015,0.00017803,2]
[312643527,1706123265879,172.94336147,0.00017803,2]
[312643528,1706123267494,684.40000442,0.00017803,2]
[312643530,1706123277148,1826.6016666,0.00017782,2]
[312643531,1706123278183,3094.53696782,0.00017803,2]
[312643533,1706123285705,684.40000442,0.00017803,2]
[312643535,1706123301508,684.40000442,0.00017803,2]
[312643536,1706123321520,203.13729402,0.00017803,2]
[312643566,1706123431895,-938.03984623,0.00018761,2]
[312643567,1706123431905,-166.72224739,0.00018761,2]
[312643568,1706123431914,-3746.91160772,0.00018761,2]
[312643569,1706123431923,-2003.13525957,0.00018761,2]
[312643570,1706123431932,-2035.08647523,0.00018762,2]
[312643571,1706123431941,-302.00997705,0.00018762,2]
[312643572,1706123431951,-595.27318689,0.00018763,2]
[312643573,1706123431960,-903.88612378,0.00018764,2]
[312643574,1706123431969,-1484.61502997,0.00018764,2]
[312643575,1706123431978,-154.86062544,0.00018764,2]
[312643576,1706123431987,-562.42251903,0.00018765,2]
[312643577,1706123431996,-36974.74812136,0.00018765,2]
[312643578,1706123432005,-265.548392,0.00018766,2]
[312643579,1706123432014,-588.5086678,0.00018766,2]
[312643580,1706123432023,-19871.73595374,0.00018766,2]
[312643581,1706123432032,-81222.81038163,0.00018769,2]
[312643582,1706123432041,-154.98450255,0.00018775,2]
[312643583,1706123432051,-323.68259118,0.00018782,2]
[312643584,1706123432060,-155.0,0.00018782,2]
[312643585,1706123432068,-561.50659906,0.00018789,2]
[312643586,1706123432078,-244.195452,0.00018794,2]
[312643587,1706123432087,-302.98379497,0.00019188,2]
[312643588,1706123432097,-211.53795191,0.0001978,2]
[312643589,1706123432106,-2321.82861081,0.00019781,2]
[312643590,1706123432115,-303.54757009,0.00019781,2]
[312643591,1706123432125,-154.86062544,0.00019798,3]
[312643592,1706123432135,-19553.16458423,0.00022007,2]
[312643593,1706123432148,-1353.43174012,0.00022007,2]
[312643594,1706123432158,-243.19997644,0.00022011,2]
[312643595,1706123432168,-154.87609912,0.0002356,2]
[312643596,1706123432177,-3989.14257076,0.00023564,2]
[312643597,1706123432186,-599.28047118,0.00023564,2]
[312643598,1706123432195,-538.69051036,0.00026906,2]
[312643599,1706123432205,-500.0,0.00027397,2]
[312643600,1706123432216,-500.0,0.00027534,2]
[312643601,1706123432226,-500.0,0.00027671,2]
[312643602,1706123432236,-910.29159127,0.00028053,2]
[312643603,1706123432244,-4366.80387016,0.00028878,2]
[312643677,1706123437828,-3595.53704099,0.00028878,2]
[312643678,1706123437838,-151.50000152,0.00029739,2]
[312643679,1706123437848,-4028.03026231,0.000298,2]
[312643681,1706123437857,-188.29380735,0.00029828,2]
[312643682,1706123437866,-155.0,0.00029884,2]
[312643684,1706123437875,-155.0,0.00029884,2]
[312643686,1706123437885,-1293.76681809,0.00029884,2]
[312643689,1706123437894,-876.39189184,0.00029885,2]
[312643690,1706123437903,-170.92363548,0.00029885,2]
[312643692,1706123437913,-279.79758913,0.00029888,2]
[312643694,1706123437922,-764.21692563,0.00029888,2]
[312643696,1706123437931,-343.09681091,0.00029888,2]
[312643697,1706123437940,-215.93124285,0.00029888,2]
[312643700,1706123437950,-154.98450155,0.00029888,2]
[312643702,1706123437960,-155.23205591,0.00029888,2]
[312643703,1706123437969,-6533.28,0.0002989,3]
[312643704,1706123437978,-309.69048287,0.00029896,2]
[312643706,1706123437988,-154.89155117,0.00029896,2]
[312643708,1706123437999,-15220.19994985,0.00029896,2]
[312643709,1706123438008,-155.0,0.00029896,2]
[312643710,1706123438018,-175.22193864,0.00029896,2]
[312643711,1706123438028,-461.30948964,0.00029896,2]
[312643712,1706123438037,-680.10116762,0.00029897,2]
[312643713,1706123438046,-1164.9655271,0.00029898,2]
[312643714,1706123438055,-209.34116569,0.00029898,2]
[312643715,1706123438064,-156.02710907,0.00029898,2]
[312643716,1706123438073,-3486.61806957,0.00029899,2]
[312643717,1706123438083,-74003.26564103,0.000299,2]
[312643718,1706123438092,-139234.85869816,0.0003,4]
[312643719,1706123438101,-2196.43554395,0.0003,2]
[312643720,1706123438110,-270.0,0.0003,4]
[312643721,1706123438120,-161.197935,0.00030137,2]
[312643722,1706123438129,-158.280104,0.00030137,2]
[312643723,1706123438138,-180.696184,0.00031,4]
[312643724,1706123438147,-300.0,0.00031,15]
[312643725,1706123438157,-161.197935,0.00031133,2]
[312643726,1706123438166,-154.86062544,0.00032,4]
[312643727,1706123438175,-161.197935,0.0003213,2]
[312643728,1706123438184,-5000.0,0.00032383,7]
[312643729,1706123438193,-161.197935,0.00033126,2]
[312643730,1706123438202,-1551.37467146,0.00034,3]
[312643731,1706123438211,-161.197935,0.00034122,2]
[312643732,1706123438220,-150.0,0.00034896,2]
[312643733,1706123438229,-150.086,0.00034896,2]
[312643734,1706123438239,-333.08255178,0.00035,4]
[312643735,1706123438248,-161.197935,0.00035118,2]
[312643736,1706123438257,-154.86062544,0.00036,4]
[312643737,1706123438266,-161.197935,0.00036115,2]
[312643738,1706123438275,-30396.95170688,0.00037,2]
[312643739,1706123438285,-11093.14818133,0.00037048,4]
[312643740,1706123438293,-161.197935,0.00037111,2]
[312643741,1706123438303,-12260.48652932,0.0003781,5]
[312643742,1706123438312,-20659.87739736,0.00038,10]
[312643743,1706123438321,-151.0,0.00038,2]
[312643744,1706123438330,-151.0,0.00038,2]
[312643745,1706123438339,-855.383101,0.00038,2]
[312643746,1706123438348,-855.383101,0.00038,2]
[312643747,1706123438357,-7633.029516,0.00038,2]
[312643748,1706123438366,-7633.029516,0.00038,2]
[312643749,1706123438375,-731.866523,0.00038,2]
[312643750,1706123438384,-731.866523,0.00038,2]
[312643751,1706123438393,-151.0,0.00038,2]
[312643752,1706123438402,-161.197935,0.00038107,2]
[312643753,1706123438411,-746.00771525,0.000385,4]
[312643754,1706123438420,-200.0,0.000388,4]
[312643755,1706123438428,-3000.0,0.00039,7]
[312643756,1706123438437,-161.197935,0.00039103,2]
[312643757,1706123438446,-307.70067308,0.000395,21]
[312643758,1706123438454,-1000.0,0.00039608,2]
[312643759,1706123438464,-1000.0,0.00039633,2]
[312643760,1706123438473,-1000.0,0.00039658,2]
[312643761,1706123438482,-1000.0,0.00039663,2]
[312643762,1706123438490,-1000.0,0.00039686,2]
[312643763,1706123438499,-1000.0,0.00039704,2]
[312643764,1706123438508,-1125.18237575,0.00039718,2]
[312643765,1706123438517,-1000.0,0.0003973,2]
[312643766,1706123438526,-1274.54346696,0.00039788,2]
[312643767,1706123438536,-1000.0,0.00039792,2]
[312643768,1706123438545,-167.00483785,0.00039798,4]
[312643769,1706123438634,-157.28913212,0.00039798,4]
[312643770,1706123438648,-1199.3109008,0.00039799,4]
[312643771,1706123438657,-37076.20214164,0.000398,10]
[312643772,1706123438666,-785.89348501,0.000398,4]
[312643773,1706123438677,-154.86062544,0.000398,4]
[312643774,1706123438686,-500.0,0.000398,7]
[312643775,1706123438695,-150.364464,0.000398,2]
[312643776,1706123438705,-191.044128,0.000398,14]
[312643777,1706123438714,-1000.0,0.00039861,2]
[312643778,1706123438724,-151.0,0.00039861,2]
[312643779,1706123438734,-103409.38394777,0.0003988,2]
[312643780,1706123438746,-1000.0,0.0003988,2]
[312643824,1706123441153,-8449.90103048,0.0003988,2]
[312643826,1706123441164,-3834.68663708,0.0003988,2]
[312643829,1706123441180,-1713.81436193,0.0003988,2]
[312643841,1706123442862,-1319.95112855,0.0003988,2]
[312643842,1706123442874,-678.29005975,0.0003988,2]
[312643879,1706124632072,-468.68543252,0.00019505,2]
[312643880,1706124632182,-4843.27,0.00019506,3]
[312643882,1706124632191,-938.03984623,0.00019506,2]
[312643883,1706124632201,-1294.07008414,0.00019506,2]
[312643884,1706124632210,-3746.91160772,0.00019506,2]
[312643885,1706124632220,-588.5086678,0.00019507,2]
[312643887,1706124632229,-1026.52542137,0.00019507,2]
[312643889,1706124632238,-154.86062544,0.00019507,2]
[312643891,1706124632247,-167.05007612,0.00019508,2]
[312643893,1706124632256,-1484.61502997,0.00019508,2]
[312643894,1706124632266,-302.00997705,0.00019508,2]
[312643896,1706124632275,-265.548392,0.00019509,2]
[312643897,1706124632284,-36974.74812136,0.0001951,2]
[312643899,1706124632294,-3476.95,0.00019511,3]
[312643901,1706124632303,-5953.79,0.00019511,3]
[312643902,1706124632312,-81222.81038163,0.00019516,2]
[312643904,1706124632321,-261.13863683,0.0001953,2]
[312643906,1706124632330,-644.40876473,0.00019547,2]
[312643908,1706124632340,-294.80371268,0.00019643,2]
[312643910,1706124632348,-1638.3938794,0.00019654,2]
[312643912,1706124632357,-2070.24926504,0.00019659,2]
[312643913,1706124632367,-277.65376406,0.00019681,2]
[312643915,1706124632377,-217.2378631,0.000197,2]
[312643917,1706124632386,-166.666666,0.00021918,2]
[312643919,1706124632395,-997.28564269,0.00023665,2]
[312643921,1706124632404,-3998.64282134,0.00023665,2]
[312643923,1706124632414,-179.78414136,0.00023665,2]
[312643925,1706124632423,-166.666666,0.00024482,2]
[312643926,1706124632432,-221.38284301,0.00028071,2]
[312643928,1706124632441,-273.89012045,0.00028071,2]
[312643930,1706124632450,-5811.93,0.00029864,3]
[312643932,1706124632460,-3595.53704099,0.00029874,2]
[312643934,1706124632469,-680.10116762,0.00029884,2]
[312643935,1706124632478,-156.02710907,0.00029884,2]
[312643937,1706124632488,-155.0,0.00029884,2]
[312643939,1706124632497,-461.30948964,0.00029884,2]
[312643940,1706124632507,-175.22193864,0.00029884,2]
[312643942,1706124632516,-154.89155117,0.00029884,2]
[312643944,1706124632525,-309.69048287,0.00029884,2]
[312643945,1706124632534,-15220.19994985,0.00029884,2]
[312643946,1706124632543,-678.6288756,0.00029884,2]
[312643948,1706124632553,-155.0,0.00029884,2]
[312643950,1706124632562,-3486.61806957,0.00029885,2]
[312643951,1706124632571,-209.34116569,0.00029895,2]
[312643952,1706124632580,-1164.9655271,0.00029895,2]
[312643953,1706124632589,-156.33187013,0.00029896,2]
[312643954,1706124632598,-155.0,0.00029998,2]
[312643955,1706124632608,-170.92363548,0.00029999,2]
[312643956,1706124632617,-607.7238862,0.0003,2]
[312644018,1706124638052,-4036.06,0.0002999,3]
[312644019,1706124638061,-1588.71165775,0.0003,2]
[312644021,1706124638070,-270.0,0.0003,4]
[312644022,1706124638084,-139234.85869816,0.0003,4]
[312644024,1706124638094,-161.197937,0.00030137,2]
[312644025,1706124638103,-161.197935,0.00030137,2]
[312644026,1706124638113,-158.280104,0.00030137,2]
[312644028,1706124638123,-154.86062544,0.00031,4]
[312644029,1706124638132,-161.197935,0.00031507,2]
[312644031,1706124638141,-154.86062544,0.00032,4]
[312644032,1706124638150,-161.197935,0.00032877,2]
[312644033,1706124638160,-161.197935,0.00034247,2]
[312644034,1706124638171,-177.0772953,0.00034247,2]
[312644035,1706124638180,-333.08255178,0.00035,4]
[312644036,1706124638190,-161.197937,0.00035616,2]
[312644037,1706124638199,-161.197935,0.00035616,2]
[312644038,1706124638209,-154.86062544,0.00036,4]
[312644039,1706124638219,-161.197935,0.00036986,2]
[312644040,1706124638229,-225.56099349,0.00037877,4]
[312644041,1706124638239,-11093.14818133,0.00037881,4]
[312644042,1706124638248,-26184.50525874,0.00037885,4]
[312644043,1706124638258,-12260.48652932,0.00037886,5]
[312644044,1706124638267,-161.197935,0.00038356,2]
[312644045,1706124638277,-746.00771525,0.000385,4]
[312644046,1706124638286,-200.0,0.000388,4]
[312644047,1706124638296,-3000.0,0.00039,7]
[312644048,1706124638305,-1199.3109008,0.00039514,4]
[312644049,1706124638316,-157.28913212,0.00039515,4]
[312644050,1706124638325,-8922.28890301,0.00039517,4]
[312644051,1706124638334,-5078.73775809,0.00039517,4]
[312644052,1706124638343,-1000.0,0.00039555,2]
[312644053,1706124638353,-1000.0,0.00039604,2]
[312644054,1706124638362,-1000.0,0.0003961,2]
[312644055,1706124638373,-1000.0,0.00039611,2]
[312644056,1706124638382,-1000.0,0.00039616,2]
[312644057,1706124638392,-1000.0,0.00039672,2]
[312644058,1706124638401,-151.50000152,0.00039681,2]
[312644059,1706124638410,-16081.43951832,0.000397,2]
[312644060,1706124638420,-1000.0,0.00039704,2]
[312644061,1706124638429,-1000.0,0.00039714,2]
[312644062,1706124638438,-1000.0,0.00039722,2]
[312644063,1706124638447,-161.197935,0.00039726,2]
[312644064,1706124638457,-1000.0,0.00039762,2]
[312644065,1706124638466,-157.09367294,0.00039798,4]
[312644066,1706124638476,-199707.38007276,0.000398,10]
[312644067,1706124638485,-500.0,0.000398,7]
[312644068,1706124638494,-188.29380735,0.000398,2]
[312644069,1706124638503,-151.0,0.000398,2]
[312644070,1706124638513,-731.866523,0.000398,2]
[312644071,1706124638523,-731.866523,0.000398,2]
[312644072,1706124638532,-151.0,0.000398,2]
[312644073,1706124638541,-150.364464,0.000398,2]
[312644074,1706124638550,-191.044128,0.000398,14]
[312644075,1706124638559,-1274.54346696,0.00039868,2]
[312644076,1706124638569,-4824.54153994,0.00039879,4]
[312644077,1706124638578,-67650.03839135,0.0003988,2]
[312644078,1706124638590,-17589.95541419,0.0003988,2]
[312644093,1706124643151,-2140.34172947,0.0003988,2]
[312644102,1706124646175,-7323.95206721,0.00019508,2]
[312644107,1706124932665,154.8915759,0.00017374,3]
[312644108,1706125035572,177.077294,0.000231,4]
[312644113,1706125066313,200.0,0.00021208,7]
[312644124,1706125759012,266.3742192,0.00017999,2]
[312644125,1706125819865,151.50000152,0.00017909,2]
[312644160,1706125833479,-178.96550385,0.00018943,2]
[312644162,1706125833488,-2410.29523387,0.00018943,2]
[312644164,1706125833498,-1294.07008414,0.00018943,2]
[312644166,1706125833507,-555.52588132,0.00018944,2]
[312644168,1706125833517,-4815.22334348,0.00018944,2]
[312644170,1706125833527,-4104.72771243,0.00018945,2]
[312644172,1706125833536,-468.68543252,0.00018945,2]
[312644174,1706125833546,-23667.9540375,0.00018947,2]
[312644176,1706125833558,-1599.9999975,0.00018947,2]
[312644178,1706125833569,-2009.1,0.00018947,2]
[312644180,1706125833584,-4763.67406923,0.00018947,2]
[312644182,1706125833596,-49182.0822774,0.00018947,2]
[312644184,1706125833605,-193.7686859,0.00018952,2]
[312644186,1706125833615,-1060.68600045,0.00019051,2]
[312644188,1706125833624,-185.45037393,0.0001906,2]
[312644190,1706125833634,-323.68259118,0.00019291,2]
[312644192,1706125833643,-522.24897159,0.00019292,2]
[312644194,1706125833653,-154.98450155,0.00019408,2]
[312644196,1706125833662,-11093.14818133,0.00019505,2]
[312644198,1706125833672,-157.09367294,0.00019506,2]
[312644200,1706125833683,-157.28913212,0.00019506,2]
[312644201,1706125833693,-8922.28890301,0.00019507,2]
[312644202,1706125833702,-225.56099349,0.0002,2]